fUST/lending_fUST_20240806
["ID","MTS","AMOUNT","RATE_DAILY","PERIOD"]
[334288830,1722901839098,-151.0,0.0003986,14]
[334288831,1722901839109,-151.0,0.0003986,14]
[334288832,1722901839118,-450.956745,0.0003986,14]
[334288833,1722901839127,-450.956745,0.0003986,14]
[334288834,1722901839137,-450.956745,0.0003986,14]
[334288835,1722901839146,-450.956745,0.0003986,14]
[334288836,1722901839155,-450.956745,0.0003986,14]
[334288837,1722901839167,-450.956745,0.0003986,14]
[334288838,1722901839176,-447.617422,0.0003986,14]
[334288839,1722901839186,-447.617422,0.0003986,14]
[334288840,1722901839196,-447.617422,0.0003986,14]
[334288841,1722901839206,-447.617422,0.0003986,14]
[334288842,1722901839215,-447.617422,0.0003986,14]
[334288843,1722901839224,-447.617422,0.0003986,14]
[334288844,1722901839233,-151.0,0.0003986,14]
[334288845,1722901839242,-151.0,0.0003986,14]
[334288846,1722901839251,-151.0,0.0003986,14]
[334288847,1722901839260,-151.0,0.0003986,14]
[334288848,1722901839270,-151.0,0.0003986,14]
[334288849,1722901839279,-151.0,0.0003986,14]
[334288850,1722901839288,-507.504705,0.0003986,14]
[334288851,1722901839297,-507.504705,0.0003986,14]
[334288852,1722901839307,-507.504705,0.0003986,14]
[334288853,1722901839316,-507.504705,0.0003986,14]
[334288854,1722901839325,-1405.619289,0.0003986,14]
[334288855,1722901839335,-1405.619289,0.0003986,14]
[334288856,1722901839344,-1405.619289,0.0003986,14]
[334288857,1722901839354,-1405.619289,0.0003986,14]
[334288858,1722901839363,-942.987619,0.0003986,14]
[334288859,1722901839373,-942.987619,0.0003986,14]
[334288860,1722901839385,-942.987619,0.0003986,14]
[334288861,1722901839395,-942.987619,0.0003986,14]
[334288862,1722901839405,-317.394168,0.0003986,14]
[334288863,1722901839417,-317.394168,0.0003986,14]
[334288864,1722901839427,-1458.667013,0.0003986,14]
[334288865,1722901839438,-317.394168,0.0003986,14]
[334288866,1722901839447,-317.394168,0.0003986,14]
[334288867,1722901839456,-1458.667013,0.0003986,14]
[334288868,1722901839467,-151.0,0.0003986,14]
[334288869,1722901839476,-151.0,0.0003986,14]
[334288870,1722901839485,-151.0,0.0003986,14]
[334288871,1722901839495,-174.470306,0.0003986,14]
[334288872,1722901839504,-151.0,0.00039863,14]
[334288873,1722901839513,-2595.581318,0.00039863,14]
[334288874,1722901839522,-2595.581318,0.00039863,14]
[334288875,1722901839531,-151.0,0.00039863,14]
[334288876,1722901839541,-151.0,0.00039863,14]
[334288877,1722901839550,-151.0,0.00039863,14]
[334288878,1722901839559,-1785.114225,0.00039863,14]
[334288879,1722901839569,-1785.114225,0.00039863,14]
[334288880,1722901839578,-151.0,0.00039863,14]
[334288881,1722901839587,-151.0,0.00039863,14]
[334288882,1722901839597,-151.0,0.00039863,14]
[334288883,1722901839606,-267.260455,0.00039863,14]
[334288884,1722901839615,-670.042692,0.00039863,14]
[334288885,1722901839624,-670.042692,0.00039863,14]
[334288886,1722901839634,-151.0,0.00039863,14]
[334288887,1722901839643,-450.956745,0.00039863,14]
[334288888,1722901839653,-450.956745,0.00039863,14]
[334288889,1722901839665,-151.0,0.00039863,14]
[334288891,1722901839674,-447.617422,0.00039863,14]
[334288892,1722901839689,-447.617422,0.00039863,14]
[334288894,1722901839698,-151.0,0.00039863,14]
[334288895,1722901839707,-151.0,0.00039863,14]
[334288896,1722901839716,-151.0,0.00039863,14]
[334288897,1722901839725,-507.504705,0.00039863,14]
[334288898,1722901839734,-507.504705,0.00039863,14]
[334288899,1722901839743,-507.504705,0.00039863,14]
[334288900,1722901839752,-507.504705,0.00039863,14]
[334288901,1722901839762,-1405.619289,0.00039863,14]
[334288902,1722901839771,-1405.619289,0.00039863,14]
[334288903,1722901839781,-1405.619289,0.00039863,14]
[334288904,1722901839790,-1405.619289,0.00039863,14]
[334288905,1722901839800,-720.22440154,0.00039863,14]
[334288911,1722901840371,-222.76321746,0.00039863,14]
[334288912,1722901840385,-942.987619,0.00039863,14]
[334288913,1722901840394,-942.987619,0.00039863,14]
[334288914,1722901840404,-942.987619,0.00039863,14]
[334288915,1722901840413,-317.394168,0.00039863,14]
[334288916,1722901840425,-317.394168,0.00039863,14]
[334288917,1722901840434,-1458.667013,0.00039863,14]
[334288918,1722901840444,-317.394168,0.00039863,14]
[334288919,1722901840455,-317.394168,0.00039863,14]
[334288920,1722901840465,-1458.667013,0.00039863,14]
[334288921,1722901840475,-151.0,0.00039863,14]
[334288922,1722901840485,-151.0,0.00039863,14]
[334288923,1722901840618,-207.0130742,0.00039863,2]
[334288924,1722901840627,-151.0,0.00039869,14]
[334288925,1722901840637,-151.0,0.00039869,14]
[334288926,1722901840646,-151.0,0.0003987,14]
[334288927,1722901840656,-151.0,0.0003987,14]
[334288928,1722901840667,-151.0,0.0003987,14]
[334288929,1722901840676,-151.0,0.0003987,14]
[334288930,1722901840686,-670.042692,0.0003987,14]
[334288931,1722901840695,-670.042692,0.0003987,14]
[334288932,1722901840704,-670.042692,0.0003987,14]
[334288933,1722901840714,-670.042692,0.0003987,14]
[334288934,1722901840724,-450.956745,0.0003987,14]
[334288935,1722901840734,-450.956745,0.0003987,14]
[334288936,1722901840744,-151.0,0.0003987,14]
[334288937,1722901840754,-153.663288,0.0003987,14]
[334288938,1722901840764,-447.617422,0.0003987,14]
[334288939,1722901840773,-447.617422,0.0003987,14]
[334288940,1722901840782,-151.0,0.0003987,14]
[334288941,1722901840792,-151.0,0.0003987,14]
[334288942,1722901840801,-151.0,0.0003987,14]
[334288943,1722901840811,-507.504705,0.0003987,14]
[334288944,1722901840820,-507.504705,0.0003987,14]
[334288945,1722901840829,-507.504705,0.0003987,14]
[334288946,1722901840839,-507.504705,0.0003987,14]
[334288947,1722901840848,-16598.7390974,0.0003987,5]
[334288948,1722901840857,-833.03836046,0.0003987,14]
[334288977,1722901846306,-175.67744792,0.00021916,2]
[334288978,1722901846316,-65.30151231,0.00039233,2]
[334288979,1722901846328,-348.72463609,0.00039233,2]
[334288980,1722901846338,-664.1943135,0.00039233,2]
[334288981,1722901846347,-9528.61536643,0.0003979,3]
[334288982,1722901854096,45.03974516,0.00017269,2]
[334288983,1722901854118,188.71437125,0.00017269,2]
[334288984,1722901854140,161.6772444,0.00017269,2]
[334288985,1722901854161,204.39060712,0.00017269,2]
[334288994,1722902052099,7715.0,0.0001401,2]
[334288998,1722902095680,10000.0,0.0001401,2]
[334288999,1722902115947,2000.0,0.0001401,2]
[334289003,1722902827162,-162.909582,0.00014247,2]
[334289004,1722902827184,-172.327353,0.00014247,2]
[334289005,1722902827390,-676.40152967,0.00016309,2]
[334289006,1722902827413,-154.71377951,0.00016532,2]
[334289007,1722902827434,-254.45484551,0.00018989,2]
[334289008,1722902827455,-154.79103211,0.00018989,2]
[334289009,1722902827477,-796.01073107,0.00018999,2]
[334289010,1722902827499,-155.02236501,0.00019046,2]
[334289011,1722902827521,-214.69062998,0.0002217,2]
[334289012,1722902827542,-189.52144051,0.00025,2]
[334289013,1722902827564,-295.66103858,0.00025,2]
[334289014,1722902831263,-106.68550432,0.00025,2]
[334289015,1722902831284,-115.69298316,0.00025,2]
[334289016,1722902835092,-38.85111176,0.00025,2]
[334289017,1722902835113,-500.0,0.00025,30]
[334289018,1722902835134,-500.0,0.00025,30]
[334289019,1722902835155,-86.53594706,0.00025,30]
[334289020,1722902841107,-174.78232709,0.00025,30]
[334289024,1722902954097,-238.68172585,0.00025,30]
[334289025,1722902954118,-28.23210826,0.00025,30]
[334289026,1722902963106,-248.63498464,0.00025,30]
[334289027,1722902974104,-176.1329071,0.00025,30]
[334289028,1722902988732,68.8670929,0.00025,2]
[334289048,1722903038407,-308.71856903,0.000249,2]
[334289049,1722903038424,-120.65434761,0.00025,2]
[334289050,1722903038433,-402.3465429,0.00026848,2]
[334289051,1722903038442,-284.83809153,0.0003,3]
[334289052,1722903038451,-532.65775619,0.00030302,10]
[334289053,1722903038484,-9.02223364,0.00030302,10]
[334289054,1722903038509,-721.27570375,0.00030302,10]
[334289055,1722903038518,-164.108207,0.000362,2]
[334289056,1722903038527,-164.108207,0.00036578,2]
[334289057,1722903038537,-164.108207,0.00036955,2]
[334289058,1722903038546,-164.108207,0.00037332,2]
[334289059,1722903038555,-164.108207,0.00037709,2]
[334289060,1722903038564,-164.108207,0.00038087,2]
[334289061,1722903038573,-206.8027535,0.00038411,2]
[334289062,1722903038582,-172.327353,0.00038795,2]
[334289063,1722903038592,-3868.0,0.00039,120]
[334289064,1722903038601,-3177.34458678,0.00039386,2]
[334289065,1722903038611,-152.0,0.00039452,15]
[334289066,1722903038620,-152.0,0.00039635,15]
[334289067,1722903038629,-3177.34458678,0.00039694,2]
[334289068,1722903038639,-151.0,0.0003979,14]
[334289069,1722903038649,-151.0,0.000398,14]
[334289070,1722903038668,-152.0,0.00039817,15]
[334289071,1722903038678,-151.0,0.0003985,14]
[334289072,1722903038687,-237.0,0.00039853,14]
[334289073,1722903038697,-151.0,0.00039879,14]
[334289074,1722903038707,-280.416944,0.00039879,14]
[334289075,1722903038716,-151.0,0.0003988,14]
[334289076,1722903038726,-171.435741,0.0003988,14]
[334289077,1722903038736,-156.767022,0.0003988,14]
[334289078,1722903038746,-156.767022,0.0003988,14]
[334289079,1722903038756,-156.767022,0.0003988,14]
[334289080,1722903038766,-156.767022,0.0003988,14]
[334289081,1722903038780,-151.0,0.0003988,14]
[334289082,1722903038790,-355.025059,0.0003988,14]
[334289083,1722903038799,-355.025059,0.0003988,14]
[334289084,1722903038809,-355.025059,0.0003988,14]
[334289085,1722903038819,-355.025059,0.0003988,14]
[334289086,1722903038828,-151.0,0.0003988,14]
[334289087,1722903038838,-151.0,0.0003988,14]
[334289088,1722903038848,-151.0,0.0003988,14]
[334289089,1722903038859,-151.0,0.0003988,14]
[334289090,1722903038869,-151.0,0.0003988,14]
[334289091,1722903038880,-151.0,0.0003988,14]
[334289092,1722903038889,-151.0,0.0003988,14]
[334289093,1722903038899,-151.0,0.0003988,14]
[334289094,1722903038920,-2000.0,0.00039889,10]
[334289095,1722903038930,-1009.65895654,0.00039889,10]
[334289096,1722903038939,-1506.09826441,0.00039889,2]
[334289097,1722903038949,-156.767022,0.0003989,14]
[334289098,1722903038957,-156.767022,0.0003989,14]
[334289099,1722903038966,-355.025059,0.0003989,14]
[334289100,1722903038975,-355.025059,0.0003989,14]
[334289101,1722903038984,-355.025059,0.0003989,14]
[334289102,1722903038993,-355.025059,0.0003989,14]
[334289103,1722903039001,-151.0,0.0003989,14]
[334289104,1722903039010,-151.0,0.0003989,14]
[334289105,1722903039019,-151.0,0.0003989,14]
[334289106,1722903039028,-151.0,0.0003989,14]
[334289107,1722903039037,-151.0,0.0003989,14]
[334289108,1722903039046,-151.0,0.0003989,14]
[334289109,1722903039055,-151.0,0.0003989,14]
[334289110,1722903039065,-150.112233,0.000399,7]
[334289111,1722903039075,-151.0,0.000399,14]
[334289112,1722903039085,-161.198592,0.000399,14]
[334289113,1722903039095,-161.198592,0.000399,14]
[334289114,1722903039104,-2000.0,0.000399,2]
[334289115,1722903039114,-156.767022,0.00039906,14]
[334289116,1722903039123,-156.767022,0.00039906,14]
[334289117,1722903039133,-160.0,0.0003992,3]
[334289118,1722903039143,-151.0,0.0003993,14]
[334289119,1722903039153,-151.0,0.0003993,14]
[334289120,1722903039175,-1506.09826439,0.00039942,2]
[334289121,1722903039185,-150.5,0.0003995,120]
[334289122,1722903039195,-355.025059,0.0003995,14]
[334289123,1722903039205,-355.025059,0.0003995,14]
[334289124,1722903039214,-151.0,0.0003995,14]
[334289125,1722903039225,-151.0,0.0003995,14]
[334289126,1722903039235,-151.0,0.0003995,14]
[334289127,1722903039244,-151.0,0.0003995,14]
[334289128,1722903039254,-151.0,0.0003995,14]
[334289129,1722903039264,-151.0,0.0003995,14]
[334289130,1722903039274,-502.532019,0.0003995,14]
[334289131,1722903039283,-1606.602803,0.0003995,14]
[334289132,1722903039293,-1606.602803,0.0003995,14]
[334289133,1722903039303,-502.532019,0.0003995,14]
[334289134,1722903039313,-151.0,0.0003995,14]
[334289135,1722903039322,-151.0,0.0003995,14]
[334289136,1722903039332,-1021.066909,0.0003995,14]
[334289137,1722903039341,-1021.066909,0.0003995,14]
[334289138,1722903039352,-151.0,0.0003995,14]
[334289139,1722903039362,-609.144868,0.0003995,14]
[334289140,1722903039372,-609.144868,0.0003995,14]
[334289141,1722903039382,-162.35,0.0003995,3]
[334289142,1722903039393,-487.09,0.0003996,3]
[334289143,1722903039404,-156.767022,0.0003996,14]
[334289144,1722903039426,-156.767022,0.0003996,14]
[334289145,1722903039435,-151.0,0.0003996,14]
[334289146,1722903039445,-206.193921,0.0003996,14]
[334289147,1722903039455,-151.0,0.0003996,14]
[334289148,1722903039464,-151.0,0.0003996,14]
[334289149,1722903039475,-300.142808,0.0003996,14]
[334289150,1722903039485,-161.198592,0.0003996,14]
[334289151,1722903039619,-161.198592,0.0003996,14]
[334289152,1722903039633,-151.0,0.0003996,14]
[334289153,1722903039643,-377.114984,0.0003996,14]
[334289154,1722903039653,-377.114984,0.0003996,14]
[334289155,1722903039674,-9929.90756881,0.0003996,5]
[334289156,1722903039683,-153.0,0.0003997,120]
[334289157,1722903039693,-530.35702832,0.0003997,120]
[334289158,1722903039702,-355.025059,0.0003997,14]
[334289159,1722903039711,-355.025059,0.0003997,14]
[334289160,1722903039722,-151.0,0.0003997,14]
[334289161,1722903039731,-151.0,0.0003997,14]
[334289162,1722903039740,-232.993525,0.0003997,14]
[334289163,1722903039750,-1021.066909,0.0003997,14]
[334289164,1722903039760,-1021.066909,0.0003997,14]
[334289165,1722903039770,-151.0,0.0003997,14]
[334289166,1722903039780,-151.0,0.0003997,14]
[334289167,1722903039793,-609.144868,0.0003997,14]
[334289168,1722903039803,-609.144868,0.0003997,14]
[334289169,1722903039813,-151.0,0.0003997,14]
[334289170,1722903039822,-151.0,0.0003997,14]
[334289171,1722903039834,-151.136452,0.0003997,14]
[334289172,1722903039844,-151.0,0.0003997,14]
[334289173,1722903039853,-270.574047,0.0003997,14]
[334289174,1722903039864,-270.574047,0.0003997,14]
[334289175,1722903039874,-268.570453,0.0003997,14]
[334289176,1722903039883,-268.570453,0.0003997,14]
[334289177,1722903039892,-10659.29,0.0003998,3]
[334289178,1722903039903,-150.5,0.0003998,120]
[334289179,1722903039925,-153.0,0.0003998,120]
[334289180,1722903039934,-151.0,0.00039989,14]
[334289181,1722903039944,-150.5,0.0003999,120]
[334289182,1722903039954,-153.0,0.0003999,120]
[334289183,1722903039964,-156.767022,0.0003999,14]
[334289184,1722903039974,-156.767022,0.0003999,14]
[334289185,1722903039984,-151.0,0.0003999,14]
[334289187,1722903039994,-151.0,0.0003999,14]
[334289189,1722903040004,-151.0,0.0003999,14]
[334289191,1722903040014,-40.53382425,0.0003999,14]
[334289203,1722903040879,-110.46617575,0.0003999,14]
[334289204,1722903040889,-151.0,0.0003999,14]
[334289205,1722903040899,-23.83270682,0.0003999,14]
[334289284,1722903043423,-478.69931218,0.0003999,14]
[334289285,1722903043433,-1606.602803,0.0003999,14]
[334289286,1722903043443,-1603.8070315,0.0003999,14]
[334289287,1722903043503,-2.7957715,0.0003999,14]
[334289288,1722903043512,-502.532019,0.0003999,14]
[334289289,1722903043522,-151.0,0.0003999,14]
[334289290,1722903043532,-1021.066909,0.0003999,14]
[334289291,1722903043541,-1021.066909,0.0003999,14]
[334289292,1722903043551,-151.0,0.0003999,14]
[334289293,1722903043560,-609.144868,0.0003999,14]
[334289294,1722903043570,-609.144868,0.0003999,14]
[334289295,1722903043579,-151.0,0.0003999,14]
[334289296,1722903043588,-243.365008,0.0003999,14]
[334289297,1722903043598,-151.0,0.0003999,14]
[334289298,1722903043607,-151.0,0.0003999,14]
[334289299,1722903043616,-270.574047,0.0003999,14]
[334289300,1722903043625,-270.574047,0.0003999,14]
[334289301,1722903043634,-14205.12062265,0.0003999,5]
[334289309,1722903596426,-162.909582,0.00014247,2]
[334289312,1722903806685,172.327353,0.00014247,2]
[334289313,1722903934160,-197.97499817,0.00017269,2]
[334289314,1722903934183,-244.01806079,0.00017269,2]
[334289315,1722903934207,-245.46552402,0.00017269,2]
[334289318,1722904025120,-256.006286,0.00017019,2]
[334289319,1722904025143,-70.52173793,0.0002,2]
[334289320,1722904026106,-250.35702584,0.00017269,2]
[334289321,1722904026137,-2168.66125238,0.0002,2]
[334289322,1722904026176,-154.89498593,0.00020932,2]
[334289323,1722904026213,-336.4458728,0.00020999,2]
[334289324,1722904026247,-154.79103211,0.00020999,2]
[334289325,1722904026282,-154.74467129,0.00020999,2]
[334289326,1722904026313,-51.04659977,0.00021011,2]
[334289327,1722904028255,-108.20674691,0.00021011,2]
[334289328,1722904028285,-107.79603774,0.00022,2]
[334289329,1722904046106,-244.24070932,0.00022,2]
[334289330,1722904046129,-22.98102241,0.00026583,2]
[334289331,1722904051111,-195.95755021,0.00026583,2]
[334289332,1722904051150,-183.40797028,0.00026583,2]
[334289333,1722904051174,-170.589378,0.00032587,2]
[334289334,1722904051196,-179.974197,0.00033068,2]
[334289335,1722904051216,-300.0,0.00033115,2]
[334289336,1722904051242,-1505.40742785,0.00033116,2]
[334289339,1722904151101,-175.39275877,0.00026649,2]
[334289340,1722904151122,-284.83809153,0.00033116,3]
[334289341,1722904151144,-377.46039469,0.00033116,2]
[334289342,1722904151938,156.95333335,0.00021916,2]
[334289344,1722904167011,188.24924053,0.00021916,2]
[334289346,1722904177075,6794.13270912,0.00027,120]
[334289347,1722904208683,56.75075947,0.00025081,2]
[334289348,1722904208706,151.63463938,0.00025081,2]
[334289377,1722904232598,-450.67441517,0.00025081,2]
[334289379,1722904232608,-621.9529907,0.00026335,2]
[334289381,1722904232617,-789.47414375,0.00031608,4]
[334289383,1722904232627,-254.63533274,0.00033116,4]
[334289385,1722904232638,-4646.25152136,0.00033116,2]
[334289387,1722904232648,-179.974197,0.00033929,2]
[334289389,1722904232658,-187.190196,0.00034232,2]
[334289391,1722904232674,-175.8804498,0.00034667,30]
[334289393,1722904232683,-179.974197,0.00034791,2]
[334289395,1722904232698,-200.0,0.00035438,30]
[334289397,1722904232708,-3382.19255648,0.00039,120]
[334289400,1722904232722,-485.80744352,0.00039,120]
[334289402,1722904232733,-155.0,0.0003993,42]
[334289404,1722904232743,-1054.443752,0.0003998,14]
[334289406,1722904232753,-205.89783656,0.00039987,120]
[334289490,1722904238595,-775.68953518,0.00039987,120]
[334289493,1722904240131,-18.41262726,0.00039987,120]
[334289494,1722904240149,-500.0,0.00039989,31]
[334289496,1722904240160,-500.0,0.00039989,31]
[334289499,1722904240170,-500.0,0.00039989,31]
[334289502,1722904240182,-500.0,0.00039989,31]
[334289503,1722904240192,-500.0,0.00039989,31]
[334289504,1722904240211,-500.0,0.00039989,31]
[334289505,1722904240228,-500.0,0.00039989,31]
[334289506,1722904240237,-200.0,0.00039989,31]
[334289507,1722904240247,-302.08543139,0.00039989,31]
[334289508,1722904240257,-500.0,0.00039989,31]
[334289509,1722904240268,-189.37504824,0.00039989,31]
[334289551,1722904243644,-310.62495176,0.00039989,31]
[334289552,1722904243654,-151.0,0.0003999,14]
[334289553,1722904243664,-7145.72577967,0.0003999,30]
[334289636,1722904281845,163.507942,0.00014247,2]
[334289639,1722904363463,2969.57481146,0.00014247,2]
[334289663,1722904753440,172.327353,0.00014247,2]
[334289667,1722904919840,197.0,0.00015,10]
[334289668,1722905138145,-154.72922386,0.0001571,2]
[334289669,1722905138168,-29.32378884,0.00015744,2]
[334289670,1722905142334,-127.62954451,0.00015744,2]
[334289671,1722905142355,-121.18417446,0.00015746,2]
[334289673,1722905227107,-223.45363636,0.00017882,2]
[334289674,1722905227129,-515.45451636,0.00017882,2]
[334289675,1722905230099,-300.84943237,0.00017882,2]
[334289676,1722905230120,-126.84307561,0.00017882,2]
[334289677,1722905234140,-27.79352837,0.00017882,2]
[334289678,1722905234163,-280.37012538,0.00017882,2]
[334289679,1722905234184,-154.77557542,0.00017882,2]
[334289680,1722905234205,-163.45442298,0.00017882,2]
[334289681,1722905234226,-155.06546205,0.00018125,2]
[334289682,1722905234247,-235.98044981,0.0002,2]
[334289683,1722905234269,-507.74826612,0.0002217,2]
[334289684,1722905234290,-402.3465429,0.00025,2]
[334289685,1722905234310,-151.0,0.0003,120]
[334289686,1722905234331,-151.0,0.00032,120]
[334289687,1722905234352,-151.0,0.00034,120]
[334289688,1722905234373,-160.510825,0.00035192,2]
[334289689,1722905234394,-200.0,0.00035473,30]
[334289690,1722905234416,-160.510825,0.00035498,2]
[334289691,1722905234438,-261.23867,0.00035574,2]
[334289692,1722905234461,-5272.15181585,0.00035693,2]
[334289693,1722905237100,-257.77259132,0.00017882,2]
[334289694,1722905238148,-39.05678179,0.00017882,2]
[334289695,1722905238171,-2405.49255929,0.00035693,2]
[334289696,1722905247119,-183.34635874,0.00025,2]
[334289697,1722905247144,-174.25406374,0.00035693,2]
[334289698,1722905296213,192.784555,0.00014247,2]
[334289699,1722905357111,-816.30394873,0.00021916,2]
[334289700,1722905365520,261.35591649,0.00021916,2]
[334289701,1722905365542,151.63463938,0.00021916,2]
[334289702,1722905365563,40.45609895,0.00021916,2]
[334289703,1722905370662,156.90145808,0.00021916,2]
[334289704,1722905375218,88.09854192,0.00021916,2]
[334289705,1722905375239,66.64612937,0.00021916,2]
[334289749,1722905433203,-882.78335449,0.0003,120]
[334289760,1722905433274,-11813.59113486,0.0003,120]
[334289832,1722905441099,-7303.62551065,0.0003,120]
[334289834,1722905441109,-178.193782,0.00030741,2]
[334289835,1722905441118,-255.78727015,0.00035692,15]
[334289836,1722905441127,-300.0,0.00035692,15]
[334289837,1722905441136,-959.87448582,0.00035693,30]
[334289862,1722905443772,-1388.39999991,0.00035005,2]
[334289863,1722905443785,-1247.00275819,0.00035005,2]
[334289864,1722905443795,-1427.63956723,0.00035693,30]
[334289865,1722905443807,-414.85329315,0.00035693,30]
[334289886,1722905749878,172.327353,0.00014247,2]
[334289898,1722905828537,518.19379866,0.00014247,2]
[334289900,1722906147605,2520.0,0.00014247,2]
[334289901,1722906226615,1680.0,0.00014247,2]
[334289902,1722906251839,192.784555,0.00014247,2]
[334289903,1722906325613,1400.0,0.00014247,2]
[334289904,1722906338237,-170.39089185,0.00016038,2]
[334289905,1722906340614,1400.0,0.00014247,2]
[334289906,1722906354149,-224.42153774,0.00015954,2]
[334289907,1722906428164,-942.68890731,0.00015952,2]
[334289908,1722906428186,-77.11093901,0.00015954,2]
[334289909,1722906428317,-442.48862674,0.00015954,2]
[334289910,1722906428350,-175.83070255,0.00016038,2]
[334289911,1722906428377,-212.78917601,0.00016095,2]
[334289912,1722906428401,-194.58009581,0.00016159,2]
[334289913,1722906428424,-254.45484551,0.00017019,2]
[334289914,1722906428447,-155.02236501,0.00017019,2]
[334289915,1722906428470,-154.71377951,0.00017019,2]
[334289916,1722906428492,-729.4,0.00017269,2]
[334289917,1722906428514,-188.24924053,0.00020721,2]
[334289918,1722906428536,-158.91248787,0.00020999,2]
[334289919,1722906428565,-182.90960493,0.00021011,2]
[334289920,1722906428590,-154.79103211,0.00021011,2]
[334289921,1722906428612,-160.87833744,0.00021011,2]
[334289922,1722906428634,-741.09949138,0.00021916,2]
[334289923,1722906430105,-676.86376499,0.00019338,2]
[334289924,1722906431104,-444.42668837,0.00019338,2]
[334289925,1722906432362,-1569.15509921,0.00019338,2]
[334289926,1722906440108,-67.66508525,0.00019338,2]
[334289927,1722906440132,-214.69062998,0.0002217,2]
[334289928,1722906440155,-139.46542467,0.00024999,2]
[334289929,1722906450104,-160.53457533,0.00024999,2]
[334289930,1722906450126,-259.62390578,0.00025,30]
[334289932,1722906549123,-154.79103211,0.00019256,2]
[334289933,1722906549145,-141.55633539,0.00024999,2]
[334289934,1722906550091,-158.44366461,0.00024999,2]
[334289935,1722906550112,-86.55633539,0.00025,30]
[334289937,1722906565100,-153.81975883,0.00025,30]
[334289938,1722906565121,-2.24852092,0.00025,30]
[334289939,1722906565148,-259.30627888,0.00025,30]
[334290035,1722906631972,-223.0,0.00024999,2]
[334290037,1722906631984,-238.4452002,0.00025,30]
[334290039,1722906631993,-242.3184433,0.00025,30]
[334290041,1722906632005,-257.6815567,0.00025,30]
[334290043,1722906632017,-500.0,0.00025,30]
[334290045,1722906632026,-500.0,0.00025,30]
[334290047,1722906632036,-279.0,0.00025,30]
[334290049,1722906632045,-402.3465429,0.00025,2]
[334290051,1722906632055,-154.54409492,0.00025,2]
[334290053,1722906632064,-729.4,0.00025,2]
[334290055,1722906632074,-189.52144051,0.00025,2]
[334290074,1722906632249,-629.44833394,0.00027463,2]
[334290076,1722906632259,-170.589378,0.00029851,2]
[334290078,1722906632269,-3428.86883119,0.000299,2]
[334290080,1722906632279,-300.0,0.0003,120]
[334290082,1722906632288,-654.73320762,0.00030303,4]
[334290084,1722906632298,-170.539288,0.00031279,2]
[334290086,1722906632307,-170.539288,0.00031365,2]
[334290088,1722906632317,-189.219699,0.00031413,2]
[334290090,1722906632327,-170.539288,0.0003145,2]
[334290092,1722906632336,-170.539288,0.00031536,2]
[334290094,1722906632346,-170.539288,0.00031622,2]
[334290096,1722906632356,-170.539288,0.00031708,2]
[334290098,1722906632365,-170.539288,0.00031793,2]
[334290099,1722906632377,-170.539288,0.00031879,2]
[334290101,1722906632386,-170.539288,0.00031965,2]
[334290103,1722906632396,-200.0,0.00032032,15]
[334290104,1722906632404,-170.539288,0.00032051,2]
[334290106,1722906632414,-170.539288,0.00032137,2]
[334290108,1722906632423,-170.539288,0.00032222,2]
[334290110,1722906632432,-170.539288,0.00032308,2]
[334290111,1722906632442,-170.539288,0.00032394,2]
[334290113,1722906632452,-170.539288,0.0003248,2]
[334290115,1722906632462,-13.31891954,0.00032566,2]
[334290145,1722906637981,-157.22036846,0.00032566,2]
[334290146,1722906637992,-170.539288,0.00032651,2]